fUST/lending_fUST_20250127
["ID","MTS","AMOUNT","RATE_DAILY","PERIOD"]
[350484740,1737916233392,-500.0,0.00016438,2]
[350484741,1737916233404,-500.0,0.00016438,2]
[350484742,1737916233415,-500.0,0.00016438,2]
[350484743,1737916233425,-500.0,0.00016438,2]
[350484744,1737916233435,-500.0,0.00016438,2]
[350484745,1737916233445,-1296.03,0.00016438,2]
[350484746,1737916233455,-500.0,0.00016438,2]
[350484747,1737916233465,-500.0,0.00016438,2]
[350484748,1737916233475,-500.0,0.00016438,2]
[350484749,1737916233484,-500.0,0.00016438,2]
[350484750,1737916233494,-500.0,0.00016438,2]
[350484751,1737916233504,-500.0,0.00016438,2]
[350484752,1737916233514,-500.0,0.00016438,2]
[350484753,1737916233523,-500.0,0.00016438,2]
[350484754,1737916233533,-925.49,0.00016438,2]
[350484755,1737916233542,-500.0,0.00016438,2]
[350484756,1737916233552,-500.0,0.00016438,2]
[350484757,1737916233562,-500.0,0.00016438,2]
[350484758,1737916233572,-500.0,0.00016438,2]
[350484759,1737916233582,-500.0,0.00016438,2]
[350484760,1737916233591,-500.0,0.00016438,2]
[350484761,1737916233601,-500.0,0.00016438,2]
[350484762,1737916233611,-503.0,0.00016438,2]
[350484763,1737916233621,-500.0,0.00016438,2]
[350484764,1737916233631,-500.0,0.00016438,2]
[350484765,1737916233641,-500.0,0.00016438,2]
[350484766,1737916233653,-515.72813484,0.00016438,2]
[350484767,1737916233663,-500.0,0.00016438,2]
[350484768,1737916233673,-500.0,0.00016571,2]
[350484769,1737916233683,-500.0,0.00016573,2]
[350484770,1737916233693,-500.0,0.00016573,2]
[350484771,1737916233702,-575.94,0.00016573,2]
[350484772,1737916233712,-500.0,0.00016574,2]
[350484773,1737916233722,-500.0,0.00016574,2]
[350484774,1737916233731,-500.0,0.00016574,2]
[350484775,1737916233741,-500.0,0.00016574,2]
[350484776,1737916233750,-500.0,0.00016574,2]
[350484777,1737916233762,-500.0,0.00016574,2]
[350484778,1737916233772,-500.0,0.00016574,2]
[350484779,1737916233781,-575.94,0.00016574,2]
[350484780,1737916233791,-575.94,0.00016574,2]
[350484781,1737916233801,-575.94,0.00016574,2]
[350484782,1737916233810,-500.0,0.00016574,2]
[350484783,1737916233819,-252.831692,0.00016574,2]
[350484784,1737916233829,-500.0,0.00016574,2]
[350484785,1737916233838,-500.0,0.00016574,2]
[350484786,1737916233848,-500.0,0.00016574,2]
[350484787,1737916233857,-500.0,0.00016575,2]
[350484788,1737916233867,-501.94045708,0.00016575,2]
[350484789,1737916233877,-500.0,0.00016575,2]
[350484790,1737916233888,-500.0,0.00016575,2]
[350484791,1737916233900,-500.0,0.00016575,2]
[350484792,1737916233910,-500.0,0.00016575,2]
[350484793,1737916233920,-500.0,0.00016575,2]
[350484794,1737916233929,-500.0,0.00016575,2]
[350484795,1737916233939,-500.0,0.00016575,2]
[350484796,1737916233948,-500.0,0.00016575,2]
[350484797,1737916233959,-500.0,0.00016575,2]
[350484798,1737916233969,-500.0,0.00016575,2]
[350484799,1737916233978,-500.0,0.00016575,2]
[350484800,1737916233988,-500.0,0.00016575,2]
[350484801,1737916233998,-500.0,0.00016575,2]
[350484802,1737916234008,-258.75745228,0.00016575,2]
[350484803,1737916234018,-500.0,0.00016575,2]
[350484804,1737916234028,-500.0,0.00016575,2]
[350484805,1737916234038,-557.34060511,0.00016575,2]
[350484806,1737916234048,-500.0,0.00016575,2]
[350484807,1737916234058,-500.0,0.00016575,2]
[350484808,1737916234067,-242.59931682,0.00016575,2]
[350484809,1737916234078,-500.0,0.00016575,2]
[350484810,1737916234088,-265.38134964,0.00016575,2]
[350484811,1737916234098,-618.64597035,0.00016575,2]
[350484812,1737916234108,-500.0,0.00016575,2]
[350484813,1737916234118,-7967.71,0.00016575,2]
[350484814,1737916234128,-2077.54,0.00016575,2]
[350484815,1737916234138,-500.0,0.00016575,2]
[350484816,1737916234150,-556.77,0.00016575,2]
[350484817,1737916234160,-500.0,0.00016575,2]
[350484818,1737916234171,-500.0,0.00016575,2]
[350484819,1737916234181,-1917.92,0.00016575,2]
[350484820,1737916234191,-500.0,0.00016575,2]
[350484821,1737916234201,-604.71202485,0.00016575,2]
[350484822,1737916234211,-500.0,0.00016575,2]
[350484823,1737916234221,-574.44526977,0.00016575,2]
[350484824,1737916234232,-500.0,0.00016575,2]
[350484825,1737916234241,-822.77,0.00016575,2]
[350484826,1737916234251,-500.0,0.00016575,2]
[350484827,1737916234260,-663.54,0.00016575,2]
[350484828,1737916234271,-500.0,0.00016575,2]
[350484829,1737916234281,-1782.71,0.00016575,2]
[350484830,1737916234290,-500.0,0.00016575,2]
[350484831,1737916234300,-500.0,0.00016575,2]
[350484832,1737916234310,-3188.54,0.00016575,2]
[350484833,1737916234323,-517.13008383,0.00016575,2]
[350484834,1737916234333,-500.0,0.00016575,2]
[350484835,1737916234342,-500.0,0.00016575,2]
[350484836,1737916234352,-500.0,0.00016575,2]
[350484837,1737916234361,-500.0,0.00016575,2]
[350484838,1737916234371,-873.28,0.00016575,2]
[350484839,1737916234381,-350.0,0.00016575,2]
[350484840,1737916234390,-500.0,0.00016575,2]
[350484841,1737916234403,-500.0,0.00016575,2]
[350484842,1737916234414,-758.39,0.00016575,2]
[350484843,1737916234424,-500.0,0.00016575,2]
[350484844,1737916234562,-500.0,0.00016575,2]
[350484845,1737916234574,-500.0,0.00016575,2]
[350484846,1737916234584,-500.0,0.00016575,2]
[350484847,1737916234594,-500.0,0.00016575,2]
[350484848,1737916234604,-500.0,0.00016575,2]
[350484849,1737916234613,-1296.03,0.00016575,2]
[350484850,1737916234623,-518.81607869,0.00016575,2]
[350484851,1737916234632,-500.0,0.00016575,2]
[350484852,1737916234641,-500.0,0.00016575,2]
[350484853,1737916234653,-500.0,0.00016575,2]
[350484854,1737916234663,-500.0,0.00016575,2]
[350484855,1737916234672,-500.0,0.00016575,2]
[350484856,1737916234682,-500.0,0.00016575,2]
[350484857,1737916234691,-278.15841541,0.00016575,2]
[350484858,1737916234700,-925.49,0.00016575,2]
[350484859,1737916234709,-500.0,0.00016575,2]
[350484860,1737916234719,-500.0,0.00016575,2]
[350484861,1737916234728,-503.0,0.00016575,2]
[350484862,1737916234738,-500.0,0.00016575,2]
[350484863,1737916234747,-500.0,0.00016575,2]
[350484864,1737916234756,-500.0,0.00016575,2]
[350484865,1737916234765,-500.0,0.00016711,2]
[350484866,1737916234775,-500.0,0.00016711,2]
[350484867,1737916234784,-575.94,0.00016711,2]
[350484868,1737916234793,-575.94,0.00016711,2]
[350484869,1737916234803,-500.0,0.00016711,2]
[350484870,1737916234812,-500.0,0.00016711,2]
[350484871,1737916234821,-335.79061621,0.00016712,2]
[350484872,1737916234830,-500.0,0.00016712,2]
[350484873,1737916234840,-500.0,0.00016712,2]
[350484874,1737916234849,-448.03858931,0.00016712,2]
[350484875,1737916234858,-500.0,0.00016712,2]
[350484876,1737916234868,-504.80503079,0.00016712,2]
[350484877,1737916234877,-500.0,0.00016712,2]
[350484878,1737916234887,-259.74513049,0.00016712,2]
[350484879,1737916234897,-500.0,0.00016712,2]
[350484880,1737916234906,-500.0,0.00016712,2]
[350484881,1737916234915,-500.0,0.00016712,2]
[350484882,1737916234925,-500.0,0.00016712,2]
[350484883,1737916234935,-500.0,0.00016712,2]
[350484884,1737916234944,-7967.71,0.00016712,2]
[350484885,1737916234954,-2077.54,0.00016712,2]
[350484886,1737916234963,-500.0,0.00016712,2]
[350484887,1737916234973,-556.77,0.00016712,2]
[350484888,1737916234982,-500.0,0.00016712,2]
[350484889,1737916234991,-500.0,0.00016712,2]
[350484890,1737916235001,-1917.92,0.00016712,2]
[350484891,1737916235010,-500.0,0.00016712,2]
[350484892,1737916235019,-500.0,0.00016712,2]
[350484893,1737916235029,-500.0,0.00016712,2]
[350484894,1737916235038,-822.77,0.00016712,2]
[350484895,1737916235047,-500.0,0.00016712,2]
[350484896,1737916235057,-663.54,0.00016712,2]
[350484897,1737916235066,-500.0,0.00016712,2]
[350484898,1737916235075,-1782.71,0.00016712,2]
[350484899,1737916235084,-631.1,0.00016712,2]
[350484900,1737916235094,-3188.54,0.00016712,2]
[350484901,1737916235103,-500.0,0.00016712,2]
[350484902,1737916235112,-500.0,0.00016712,2]
[350484903,1737916235121,-500.0,0.00016712,2]
[350484904,1737916235131,-500.0,0.00016712,2]
[350484905,1737916235140,-873.28,0.00016712,2]
[350484906,1737916235152,-500.0,0.00016712,2]
[350484907,1737916235162,-500.0,0.00016712,2]
[350484908,1737916235171,-758.39,0.00016712,2]
[350484909,1737916235181,-500.0,0.00016712,2]
[350484910,1737916235191,-500.0,0.00016712,2]
[350484911,1737916235200,-500.0,0.00016712,2]
[350484912,1737916235209,-500.0,0.00016712,2]
[350484913,1737916235219,-500.0,0.00016712,2]
[350484914,1737916235230,-500.0,0.00016712,2]
[350484915,1737916235242,-1296.03,0.00016712,2]
[350484916,1737916235252,-500.0,0.00016712,2]
[350484917,1737916235261,-645.56681976,0.00016712,2]
[350484918,1737916235270,-500.0,0.00016712,2]
[350484919,1737916235282,-500.0,0.00016712,2]
[350484920,1737916235291,-500.0,0.00016712,2]
[350484921,1737916235301,-925.49,0.00016712,2]
[350484922,1737916235312,-500.0,0.00016712,2]
[350484923,1737916235322,-416.97,0.00016712,2]
[350484924,1737916235331,-503.0,0.00016712,2]
[350484925,1737916235341,-500.0,0.00016712,2]
[350484926,1737916235350,-500.0,0.00016712,2]
[350484927,1737916235360,-500.0,0.00016712,2]
[350484928,1737916235369,-6227.35957324,0.00016784,2]
[350484929,1737916235379,-575.94,0.00016848,2]
[350484930,1737916235389,-575.94,0.00016848,2]
[350484931,1737916235401,-549.06630047,0.00016849,2]
[350484932,1737916235411,-258.43,0.00016849,2]
[350484933,1737916235420,-500.32010098,0.00016849,2]
[350484934,1737916235429,-500.0,0.00016849,2]
[350484935,1737916235438,-7967.71,0.00016849,2]
[350484936,1737916235447,-2077.54,0.00016849,2]
[350484937,1737916235457,-500.0,0.00016849,2]
[350484938,1737916235467,-556.77,0.00016849,2]
[350484939,1737916235478,-500.0,0.00016849,2]
[350484940,1737916235487,-500.0,0.00016849,2]
[350484941,1737916235496,-1917.92,0.00016849,2]
[350484942,1737916235505,-500.0,0.00016849,2]
[350484943,1737916235514,-500.0,0.00016849,2]
[350484944,1737916235524,-822.77,0.00016849,2]
[350484945,1737916235534,-500.0,0.00016849,2]
[350484946,1737916235543,-663.54,0.00016849,2]
[350484947,1737916235552,-431.49898908,0.00016849,2]
[350484948,1737916235561,-1782.71,0.00016849,2]
[350484949,1737916235570,-3188.54,0.00016849,2]
[350484950,1737916235579,-500.0,0.00016849,2]
[350484951,1737916235588,-500.0,0.00016849,2]
[350484952,1737916235597,-500.0,0.00016849,2]
[350484953,1737916235607,-500.0,0.00016849,2]
[350484954,1737916235616,-873.28,0.00016849,2]
[350484955,1737916235625,-500.0,0.00016849,2]
[350484956,1737916235634,-500.0,0.00016849,2]
[350484957,1737916235643,-758.39,0.00016849,2]
[350484958,1737916235655,-500.0,0.00016849,2]
[350484959,1737916235665,-500.0,0.00016849,2]
[350484960,1737916235674,-500.0,0.00016849,2]
[350484961,1737916235683,-500.0,0.00016849,2]
[350484962,1737916235692,-500.0,0.00016849,2]
[350484963,1737916235701,-500.0,0.00016849,2]
[350484964,1737916235711,-1296.03,0.00016849,2]
[350484965,1737916235720,-500.0,0.00016849,2]
[350484966,1737916235730,-500.0,0.00016849,2]
[350484967,1737916235739,-500.0,0.00016849,2]
[350484968,1737916235748,-925.49,0.00016849,2]
[350484969,1737916235757,-500.0,0.00016849,2]
[350484970,1737916235767,-503.0,0.00016849,2]
[350484971,1737916235776,-500.0,0.00016849,2]
[350484972,1737916235786,-500.0,0.00016849,2]
[350484973,1737916235795,-500.0,0.00016849,2]
[350484974,1737916235804,-150.0,0.00016875,2]
[350484975,1737916235813,-536.0,0.00016875,2]
[350484976,1737916235823,-243504.70051749,0.00016984,5]
[350484977,1737916235831,-575.94,0.00016985,2]
[350484978,1737916235841,-575.94,0.00016985,2]
[350484979,1737916235850,-7967.71,0.00016986,2]
[350484980,1737916235859,-2077.54,0.00016986,2]
[350484981,1737916235868,-500.0,0.00016986,2]
[350484982,1737916235877,-556.77,0.00016986,2]
[350484983,1737916235886,-500.0,0.00016986,2]
[350484984,1737916235896,-500.0,0.00016986,2]
[350484985,1737916235907,-1917.92,0.00016986,2]
[350484986,1737916235916,-500.0,0.00016986,2]
[350484987,1737916235925,-500.0,0.00016986,2]
[350484988,1737916235934,-822.77,0.00016986,2]
[350484989,1737916235943,-500.0,0.00016986,2]
[350484990,1737916235952,-663.54,0.00016986,2]
[350484991,1737916235963,-1782.71,0.00016986,2]
[350484992,1737916235972,-3188.54,0.00016986,2]
[350484993,1737916235982,-500.0,0.00016986,2]
[350484994,1737916235992,-500.0,0.00016986,2]
[350484995,1737916236002,-500.0,0.00016986,2]
[350484996,1737916236012,-500.0,0.00016986,2]
[350484997,1737916236023,-873.28,0.00016986,2]
[350484998,1737916236033,-500.0,0.00016986,2]
[350484999,1737916236043,-500.0,0.00016986,2]
[350485000,1737916236052,-758.39,0.00016986,2]
[350485001,1737916236061,-500.0,0.00016986,2]
[350485002,1737916236071,-500.0,0.00016986,2]
[350485003,1737916236079,-537.24,0.00016986,2]
[350485004,1737916236088,-500.0,0.00016986,2]
[350485005,1737916236098,-500.0,0.00016986,2]
[350485006,1737916236108,-500.0,0.00016986,2]
[350485007,1737916236118,-1296.03,0.00016986,2]
[350485008,1737916236129,-500.0,0.00016986,2]
[350485009,1737916236140,-500.0,0.00016986,2]
[350485010,1737916236151,-500.0,0.00016986,2]
[350485011,1737916236160,-925.49,0.00016986,2]
[350485012,1737916236169,-500.0,0.00016986,2]
[350485013,1737916236179,-503.0,0.00016986,2]
[350485014,1737916236188,-500.0,0.00016986,2]
[350485015,1737916236198,-500.0,0.00016986,2]
[350485016,1737916236207,-500.0,0.00016986,2]
[350485017,1737916236216,-291.0,0.0001705,2]
[350485018,1737916236226,-500.0,0.00017085,2]
[350485019,1737916236240,-469.7767144,0.00017087,2]
[350485020,1737916236249,-575.94,0.00017122,2]
[350485021,1737916236259,-575.94,0.00017122,2]
[350485022,1737916236269,-7967.71,0.00017123,2]
[350485023,1737916236279,-2077.54,0.00017123,2]
[350485024,1737916236290,-500.0,0.00017123,2]
[350485025,1737916236299,-556.77,0.00017123,2]
[350485026,1737916236310,-500.0,0.00017123,2]
[350485027,1737916236320,-500.0,0.00017123,2]
[350485028,1737916236330,-1917.92,0.00017123,2]
[350485029,1737916236339,-500.0,0.00017123,2]
[350485030,1737916236349,-500.0,0.00017123,2]
[350485031,1737916236359,-822.77,0.00017123,2]
[350485032,1737916236368,-500.0,0.00017123,2]
[350485033,1737916236378,-663.54,0.00017123,2]
[350485034,1737916236388,-1782.71,0.00017123,2]
[350485035,1737916236399,-3188.54,0.00017123,2]
[350485036,1737916236409,-500.0,0.00017123,2]
[350485037,1737916236419,-500.0,0.00017123,2]
[350485038,1737916236429,-500.0,0.00017123,2]
[350485039,1737916236439,-873.28,0.00017123,2]
[350485040,1737916236448,-500.0,0.00017123,2]
[350485041,1737916236458,-500.0,0.00017123,2]
[350485042,1737916236467,-758.39,0.00017123,2]
[350485043,1737916236476,-500.0,0.00017123,2]
[350485044,1737916236485,-500.0,0.00017123,2]
[350485045,1737916236495,-500.0,0.00017123,2]
[350485046,1737916236504,-500.0,0.00017123,2]
[350485047,1737916236513,-1296.03,0.00017123,2]
[350485048,1737916236522,-550.71,0.00017123,2]
[350485049,1737916236531,-500.0,0.00017123,2]
[350485050,1737916236541,-469.34861853,0.00017123,2]
[350485051,1737916236550,-925.49,0.00017123,2]
[350485052,1737916236559,-500.0,0.00017123,2]
[350485053,1737916236568,-503.0,0.00017123,2]
[350485054,1737916236578,-500.0,0.00017123,2]
[350485055,1737916236587,-240.73918408,0.00017123,2]
[350485056,1737916236596,-252.80799191,0.00017123,2]
[350485057,1737916236606,-2470.18613233,0.00017135,2]
[350485058,1737916236615,-2000.0,0.000172,2]
[350485059,1737916236624,-300.21185406,0.00017259,2]
[350485060,1737916236634,-575.94,0.00017259,2]
[350485061,1737916236643,-575.94,0.00017259,2]
[350485062,1737916236655,-7967.71,0.0001726,2]
[350485063,1737916236665,-2077.54,0.0001726,2]
[350485064,1737916236674,-500.0,0.0001726,2]
[350485065,1737916236683,-556.77,0.0001726,2]
[350485066,1737916236692,-500.0,0.0001726,2]
[350485067,1737916236702,-500.0,0.0001726,2]
[350485068,1737916236711,-1917.92,0.0001726,2]
[350485069,1737916236720,-500.0,0.0001726,2]
[350485070,1737916236729,-500.0,0.0001726,2]
[350485071,1737916236738,-822.77,0.0001726,2]
[350485072,1737916236747,-500.0,0.0001726,2]
[350485073,1737916236757,-663.54,0.0001726,2]
[350485074,1737916236766,-1782.71,0.0001726,2]
[350485075,1737916236776,-3188.54,0.0001726,2]
[350485076,1737916236786,-500.0,0.0001726,2]
[350485077,1737916236795,-500.0,0.0001726,2]
[350485078,1737916236805,-873.28,0.0001726,2]
[350485079,1737916236815,-500.0,0.0001726,2]
[350485080,1737916236825,-500.0,0.0001726,2]
[350485081,1737916236835,-758.39,0.0001726,2]
[350485082,1737916236843,-500.0,0.0001726,2]
[350485083,1737916236852,-500.0,0.0001726,2]
[350485084,1737916236861,-500.0,0.0001726,2]
[350485085,1737916236870,-500.0,0.0001726,2]
[350485086,1737916236879,-1296.03,0.0001726,2]
[350485087,1737916236888,-500.0,0.0001726,2]
[350485088,1737916236899,-925.49,0.0001726,2]
[350485089,1737916236908,-500.0,0.0001726,2]
[350485090,1737916236918,-503.0,0.0001726,2]
[350485091,1737916236928,-618.47981809,0.0001726,2]
[350485092,1737916236938,-3000.0,0.000173,2]
[350485093,1737916236948,-3000.0,0.0001731,2]
[350485094,1737916236958,-3000.0,0.0001732,2]
[350485095,1737916236967,-575.94,0.00017329,2]
[350485096,1737916236976,-575.94,0.00017329,2]
[350485097,1737916236985,-575.94,0.00017329,2]
[350485098,1737916236994,-575.94,0.00017329,2]
[350485099,1737916237004,-575.94,0.00017329,2]
[350485100,1737916237013,-576.05084724,0.00017329,2]
[350485101,1737916237023,-3000.0,0.0001733,2]
[350485102,1737916237032,-151.0,0.00017335,3]
[350485103,1737916237041,-3000.0,0.0001734,2]
[350485104,1737916237050,-3000.0,0.0001735,2]
[350485105,1737916237059,-3000.0,0.0001736,2]
[350485106,1737916237068,-3000.0,0.0001737,2]
[350485107,1737916237078,-500.0,0.00017373,2]
[350485108,1737916237087,-3000.0,0.0001738,2]
[350485109,1737916237096,-3000.0,0.0001739,2]
[350485110,1737916237106,-7967.71,0.00017397,2]
[350485111,1737916237116,-2077.54,0.00017397,2]
[350485112,1737916237126,-500.0,0.00017397,2]
[350485113,1737916237135,-556.77,0.00017397,2]
[350485114,1737916237144,-347.26,0.00017397,2]
[350485115,1737916237156,-1917.92,0.00017397,2]
[350485116,1737916237165,-822.77,0.00017397,2]
[350485117,1737916237174,-663.54,0.00017397,2]
[350485118,1737916237183,-1782.71,0.00017397,2]
[350485119,1737916237193,-3188.54,0.00017397,2]
[350485121,1737916237202,-500.0,0.00017397,2]
[350485123,1737916237212,-500.0,0.00017397,2]
[350485126,1737916237222,-873.28,0.00017397,2]
[350485128,1737916237233,-500.0,0.00017397,2]
[350485129,1737916237243,-500.0,0.00017397,2]
[350485131,1737916237254,-758.39,0.00017397,2]
[350485132,1737916237263,-500.0,0.00017397,2]
[350485133,1737916237274,-500.0,0.00017397,2]
[350485134,1737916237283,-355.34824815,0.00017397,2]
[350485136,1737916237293,-404.23,0.00017397,2]
[350485137,1737916237303,-1296.03,0.00017397,2]
[350485138,1737916237315,-500.0,0.00017397,2]
[350485140,1737916237331,-925.49,0.00017397,2]
[350485142,1737916237342,-503.0,0.00017397,2]
[350485144,1737916237352,-3000.0,0.000174,2]
[350485146,1737916237362,-3000.0,0.0001741,2]
[350485148,1737916237371,-3000.0,0.0001742,2]
[350485149,1737916237381,-3000.0,0.0001743,2]
[350485150,1737916237391,-3000.0,0.0001744,2]
[350485151,1737916237402,-631.24829901,0.00017446,2]
[350485152,1737916237412,-3000.0,0.0001745,2]
[350485153,1737916237422,-151.0,0.00017454,3]
[350485154,1737916237432,-1000.0,0.00017454,2]
[350485155,1737916237442,-3000.0,0.0001746,2]
[350485156,1737916237451,-1000.0,0.00017462,2]
[350485158,1737916237460,-3000.0,0.0001747,2]
[350485159,1737916237470,-3000.0,0.0001748,2]
[350485160,1737916237479,-3000.0,0.0001749,2]
[350485161,1737916237488,-2053.67295342,0.00017494,2]
[350485180,1737916238263,-500.0,0.00016569,2]
[350485181,1737916238272,-500.0,0.00016569,2]
[350485182,1737916238282,-500.0,0.00016569,2]
[350485183,1737916238297,-500.0,0.00016569,2]
[350485184,1737916238307,-500.0,0.00016569,2]
[350485185,1737916238317,-500.0,0.00016569,2]
[350485186,1737916238327,-63.74566866,0.00016569,2]
[350485187,1737916238339,-436.25433134,0.00016569,2]
[350485188,1737916238348,-500.0,0.00016569,2]
[350485189,1737916238357,-500.0,0.00016569,2]
[350485190,1737916238367,-500.0,0.00016569,2]
[350485191,1737916238376,-500.0,0.00016569,2]
[350485192,1737916238385,-500.0,0.00016569,2]
[350485193,1737916238395,-637.0,0.00016569,2]
[350485194,1737916238406,-265.75,0.00016569,2]
[350485195,1737916238416,-500.0,0.00016569,2]
[350485196,1737916238425,-500.0,0.00016569,2]
[350485197,1737916238434,-199.87541424,0.00016569,2]
[350485198,1737916238444,-4151.16858932,0.000169,2]
[350485199,1737916238453,-10969.53195729,0.00016984,5]
[350485200,1737916238473,-1830.90644237,0.00016984,5]
[350485217,1737916240470,-500.0,0.00016438,2]
[350485218,1737916240481,-20716.0,0.00016984,5]
[350485235,1737916242812,-500.0,0.00016438,2]
[350485236,1737916242868,-479.42729951,0.00016575,2]
[350485237,1737916242928,-20.57270049,0.00016575,2]
[350485238,1737916242938,-427.80309861,0.00016575,2]
[350486751,1737916404535,394.164177,0.00013973,2]
[350486755,1737917201777,321.92394974,0.0001515,2]
[350487211,1737917432159,-179.978811,0.00015406,2]
[350487212,1737917432168,-662.9103278,0.00015487,2]
[350487213,1737917432177,-260.86721,0.00015562,2]
[350487214,1737917432186,-500.0,0.00015972,2]
[350487215,1737917432196,-300.0,0.00016437,2]
[350487216,1737917432205,-500.0,0.00016438,2]
[350487217,1737917432214,-500.0,0.00016438,2]
[350487218,1737917432223,-554.73207523,0.00016438,2]
[350487219,1737917432232,-500.0,0.00016438,2]
[350487220,1737917432242,-1605.53,0.00016438,2]
[350487221,1737917432251,-2491.0,0.00016438,2]
[350487222,1737917432260,-500.0,0.00016573,2]
[350487223,1737917432270,-500.0,0.00016573,2]
[350487224,1737917432279,-500.0,0.00016573,2]
[350487225,1737917432287,-500.0,0.00016573,2]
[350487226,1737917432297,-516.49,0.00016573,2]
[350487227,1737917432306,-1360.97,0.00016573,2]
[350487228,1737917432315,-500.0,0.00016573,2]
[350487229,1737917432324,-500.0,0.00016573,2]
[350487230,1737917432333,-690.82,0.00016573,2]
[350487231,1737917432343,-500.0,0.00016573,2]
[350487232,1737917432352,-500.0,0.00016573,2]
[350487233,1737917432360,-500.0,0.00016573,2]
[350487234,1737917432370,-500.0,0.00016573,2]
[350487235,1737917432379,-1015.79,0.00016573,2]
[350487236,1737917432388,-500.0,0.00016573,2]
[350487237,1737917432398,-485.54847642,0.00016573,2]
[350487238,1737917432407,-500.0,0.00016573,2]
[350487239,1737917432416,-6164.24,0.00016573,2]
[350487240,1737917432425,-500.0,0.00016573,2]
[350487241,1737917432435,-500.0,0.00016574,2]
[350487242,1737917432444,-500.0,0.00016575,2]
[350487243,1737917432454,-431.36630946,0.00016575,2]
[350487244,1737917432463,-1605.53,0.00016575,2]
[350487245,1737917432472,-2491.0,0.00016575,2]
[350487246,1737917432482,-138.00283391,0.00016611,2]
[350487280,1737917438173,-569.83148746,0.00016611,2]
[350487281,1737917438183,-208.583,0.0001662,2]
[350487282,1737917438192,-500.0,0.0001671,2]
[350487283,1737917438201,-500.0,0.0001671,2]
[350487284,1737917438210,-166.52110575,0.0001671,2]
[350487285,1737917438219,-516.49,0.0001671,2]
[350487286,1737917438229,-1360.97,0.0001671,2]
[350487287,1737917438238,-500.0,0.0001671,2]
[350487288,1737917438247,-500.0,0.0001671,2]
[350487289,1737917438256,-690.82,0.0001671,2]
[350487290,1737917438265,-500.0,0.0001671,2]
[350487291,1737917438275,-500.0,0.0001671,2]
[350487292,1737917438283,-472.81534076,0.0001671,2]
[350487431,1737917480086,374.455968,0.00013973,2]
[350487570,1737918374709,355.733169,0.00013973,2]
[350487571,1737918448115,-345.3494709,0.00015259,2]
[350487572,1737918448137,-194.9729699,0.00015569,2]
[350487615,1737918632752,-4556.97828275,0.00015569,2]
[350487616,1737918632761,-179.978811,0.00015611,2]
[350487617,1737918632771,-2334.42784529,0.00015827,2]
[350487861,1737919795304,337.94651,0.00013973,2]
[350487982,1737919833120,-717.14,0.00015342,2]
[350488019,1737919838228,-928.3289022,0.00015342,2]
[350488021,1737919838240,-689.2109862,0.00015342,2]
[350488023,1737919838250,-4582.08599587,0.00015467,2]
[350488027,1737919838283,-541.66334607,0.00015467,2]